[Event "Early-Titled-Tuesday-Blitz-October-03-2023"]
[Site "Chess.com"]
[Date "2023.10.03"]
[Round "6"]
[White "ajedrezhoy"]
[Black "ExchangeAB"]
[Result "1-0"]
[WhiteElo "2376"]
[BlackElo "2484"]
[TimeControl "180+1"]
[EndTime "9:07:09 PDT"]
[Termination "ajedrezhoy won by resignation"]

1. c4 {[%clk 0:03:00.9]} 1... c6 {[%clk 0:02:58.1]} 2. Nc3 {[%clk 0:02:56]} 2...
d5 {[%clk 0:02:59]} 3. d4 {[%clk 0:02:56.1]} 3... Nf6 {[%clk 0:02:58.7]} 4. Bg5
{[%clk 0:02:55.4]} 4... dxc4 {[%clk 0:02:58]} 5. a4 {[%clk 0:02:54.1]} 5... Nd5
{[%clk 0:02:56.7]} 6. e4 {[%clk 0:02:48.1]} 6... Nxc3 {[%clk 0:02:53]} 7. bxc3
{[%clk 0:02:48.1]} 7... b5 {[%clk 0:02:37.8]} 8. Nf3 {[%clk 0:02:40.4]} 8... Qb6
{[%clk 0:02:29.6]} 9. Be2 {[%clk 0:02:34.8]} 9... Bg4 {[%clk 0:02:15.7]} 10. O-O
{[%clk 0:02:32.8]} 10... e6 {[%clk 0:02:15.3]} 11. Be3 {[%clk 0:02:26.8]} 11...
Qb7 {[%clk 0:02:12.5]} 12. Rb1 {[%clk 0:02:17.9]} 12... a6 {[%clk 0:02:10.2]}
13. Bxc4 {[%clk 0:02:14.8]} 13... Nd7 {[%clk 0:02:01.8]} 14. Be2 {[%clk
0:02:08.5]} 14... Bd6 {[%clk 0:01:58.6]} 15. h3 {[%clk 0:02:07.6]} 15... Bh5
{[%clk 0:01:47.9]} 16. c4 {[%clk 0:02:02.7]} 16... b4 {[%clk 0:01:31.7]} 17. c5
{[%clk 0:02:01.2]} 17... Bc7 {[%clk 0:01:26]} 18. e5 {[%clk 0:01:50.6]} 18... a5
{[%clk 0:01:20.2]} 19. Nd2 {[%clk 0:01:50.2]} 19... Bxe2 {[%clk 0:01:19.4]} 20.
Qxe2 {[%clk 0:01:50.3]} 20... Qa6 {[%clk 0:01:18.3]} 21. Qg4 {[%clk 0:01:46.2]}
21... Kf8 {[%clk 0:01:07.9]} 22. f4 {[%clk 0:01:39.8]} 22... Qd3 {[%clk
0:01:06.7]} 23. Rf3 {[%clk 0:01:22.4]} 23... h5 {[%clk 0:01:05]} 24. Qg3 {[%clk
0:01:20.1]} 24... g6 {[%clk 0:01:02]} 25. Qe1 {[%clk 0:01:17.7]} 25... Qc2
{[%clk 0:00:44.2]} 26. Bf2 {[%clk 0:01:15]} 26... Qxa4 {[%clk 0:00:42]} 27. g4
{[%clk 0:01:12.2]} 27... hxg4 {[%clk 0:00:41.7]} 28. hxg4 {[%clk 0:01:11.8]}
28... Qb5 {[%clk 0:00:39.6]} 29. f5 {[%clk 0:01:10.9]} 29... Ke8 {[%clk
0:00:32.3]} 30. fxe6 {[%clk 0:01:08.9]} 30... fxe6 {[%clk 0:00:30.4]} 31. Ne4
{[%clk 0:01:08.6]} 31... Rf8 {[%clk 0:00:12.1]} 32. Rxf8+ {[%clk 0:01:06.4]}
32... Nxf8 {[%clk 0:00:13]} 33. Nd6+ {[%clk 0:00:59.7]} 33... Bxd6 {[%clk
0:00:13]} 34. exd6 {[%clk 0:00:59.8]} 34... Qd3 {[%clk 0:00:11.1]} 35. Rd1
{[%clk 0:00:56.4]} 35... Qf3 {[%clk 0:00:10.1]} 36. d5 {[%clk 0:00:48.2]} 36...
cxd5 {[%clk 0:00:08.2]} 37. c6 {[%clk 0:00:47.2]} 37... Ra7 {[%clk 0:00:07.3]}
38. d7+ {[%clk 0:00:45.2]} 38... Nxd7 {[%clk 0:00:06.2]} 39. Qxe6+ {[%clk
0:00:42]} 39... Kd8 {[%clk 0:00:05]} 40. Bh4+ {[%clk 0:00:39.8]} 40... Kc8
{[%clk 0:00:04.8]} 41. cxd7+ {[%clk 0:00:38.5]} 41... Rxd7 {[%clk 0:00:05.7]}
42. Qe8+ {[%clk 0:00:37.3]} 42... Kb7 {[%clk 0:00:05.5]} 43. Qxd7+ {[%clk
0:00:36.6]} 43... Kb6 {[%clk 0:00:05]} 44. Qd6+ {[%clk 0:00:36.4]} 44... Kb5
{[%clk 0:00:05.1]} 45. Qxd5+ {[%clk 0:00:36.2]} 45... Qxd5 {[%clk 0:00:04.5]}
46. Rxd5+ {[%clk 0:00:36.1]} 46... Kb6 {[%clk 0:00:04.5]} 47. Be7 {[%clk
0:00:34.2]} 47... b3 {[%clk 0:00:04.3]} 48. Ba3 {[%clk 0:00:33.5]} 48... a4
{[%clk 0:00:04.6]} 49. Rg5 {[%clk 0:00:33.2]} 49... Kc6 {[%clk 0:00:04.3]} 50.
Kf2 {[%clk 0:00:33.2]} 1-0

[Event "Early-Titled-Tuesday-Blitz-October-03-2023"]
[Site "Chess.com"]
[Date "2023.10.03"]
[Round "6"]
[White "kingapolak"]
[Black "vladoboch"]
[Result "1-0"]
[WhiteElo "1767"]
[BlackElo "2399"]
[TimeControl "180+1"]
[EndTime "9:07:10 PDT"]
[Termination "kingapolak won by resignation"]

1. e4 {[%clk 0:03:00.9]} 1... c5 {[%clk 0:02:57.9]} 2. Nf3 {[%clk 0:03:00.7]}
2... Nc6 {[%clk 0:02:57.9]} 3. Nc3 {[%clk 0:03:00.8]} 3... g6 {[%clk 0:02:55.6]}
4. d4 {[%clk 0:02:59.8]} 4... cxd4 {[%clk 0:02:55.7]} 5. Nxd4 {[%clk 0:03:00.7]}
5... Bg7 {[%clk 0:02:56]} 6. Be3 {[%clk 0:02:59.6]} 6... Nf6 {[%clk 0:02:49.2]}
7. Bc4 {[%clk 0:02:59.6]} 7... O-O {[%clk 0:02:48.3]} 8. Bb3 {[%clk 0:02:56.9]}
8... a6 {[%clk 0:02:47.7]} 9. O-O {[%clk 0:02:53.4]} 9... d6 {[%clk 0:02:41.3]}
10. h3 {[%clk 0:02:52.8]} 10... Bd7 {[%clk 0:02:41]} 11. Qd2 {[%clk 0:02:46.1]}
11... b5 {[%clk 0:02:34.6]} 12. a3 {[%clk 0:02:44.8]} 12... Rc8 {[%clk 0:02:32]}
13. Rad1 {[%clk 0:02:28.6]} 13... Ne5 {[%clk 0:02:31.7]} 14. Bh6 {[%clk
0:02:25.3]} 14... Nc4 {[%clk 0:02:14.9]} 15. Bxc4 {[%clk 0:02:23.4]} 15... Rxc4
{[%clk 0:02:15.8]} 16. Bxg7 {[%clk 0:02:23.9]} 16... Kxg7 {[%clk 0:02:16]} 17.
Qe3 {[%clk 0:02:20.6]} 17... Qc7 {[%clk 0:01:57.9]} 18. f4 {[%clk 0:02:16.7]}
18... Qc5 {[%clk 0:01:42.9]} 19. Rfe1 {[%clk 0:02:14.6]} 19... e5 {[%clk
0:01:38.8]} 20. fxe5 {[%clk 0:02:04.4]} 20... dxe5 {[%clk 0:01:38.1]} 21. Nf3
{[%clk 0:01:50.2]} 21... Qe7 {[%clk 0:01:11.2]} 22. Rd2 {[%clk 0:01:30.2]} 22...
Rfc8 {[%clk 0:01:10.1]} 23. Qg5 {[%clk 0:01:14.1]} 23... R4c5 {[%clk 0:00:58.6]}
24. Kh2 {[%clk 0:01:13.3]} 24... h6 {[%clk 0:00:56.5]} 25. Qe3 {[%clk
0:01:10.9]} 25... a5 {[%clk 0:00:51.4]} 26. Ree2 {[%clk 0:01:10.1]} 26... h5
{[%clk 0:00:47.4]} 27. Nd5 {[%clk 0:01:06.9]} 27... Nxd5 {[%clk 0:00:42.4]} 28.
exd5 {[%clk 0:01:04.5]} 28... f6 {[%clk 0:00:35.3]} 29. c3 {[%clk 0:00:56.9]}
29... Qd6 {[%clk 0:00:35.5]} 30. Qe4 {[%clk 0:00:54.1]} 30... Rc4 {[%clk
0:00:34.1]} 31. Qe3 {[%clk 0:00:53.8]} 31... e4+ {[%clk 0:00:34.6]} 32. g3
{[%clk 0:00:47.3]} 32... Re8 {[%clk 0:00:23.8]} 33. Nh4 {[%clk 0:00:39.4]} 33...
Re5 {[%clk 0:00:16.3]} 34. Ng2 {[%clk 0:00:39.3]} 34... g5 {[%clk 0:00:15.1]}
35. h4 {[%clk 0:00:34.4]} 35... Rxd5 {[%clk 0:00:11.1]} 36. Rxd5 {[%clk
0:00:32.6]} 36... Qxd5 {[%clk 0:00:11.6]} 37. Rd2 {[%clk 0:00:33.5]} 37... Qe6
{[%clk 0:00:07.4]} 38. Qa7 {[%clk 0:00:33.5]} 38... Qh3+ {[%clk 0:00:05.6]} 39.
Kg1 {[%clk 0:00:32.7]} 39... gxh4 {[%clk 0:00:04.5]} 40. Rxd7+ {[%clk
0:00:31.1]} 40... Kg6 {[%clk 0:00:04.2]} 41. Rg7+ {[%clk 0:00:30.6]} 41... Kh6
{[%clk 0:00:04.3]} 42. Rh7+ {[%clk 0:00:30.3]} 42... Kg5 {[%clk 0:00:04.9]} 43.
Qg7+ {[%clk 0:00:28.7]} 43... Kf5 {[%clk 0:00:05.5]} 44. Rxh5+ {[%clk
0:00:28.3]} 44... Ke6 {[%clk 0:00:05.4]} 45. Nf4+ {[%clk 0:00:27.5]} 45... Kd6
{[%clk 0:00:04.8]} 46. Nxh3 {[%clk 0:00:28.2]} 1-0

[Event "Early-Titled-Tuesday-Blitz-October-03-2023"]
[Site "Chess.com"]
[Date "2023.10.03"]
[Round "6"]
[White "ChessicallyInclined"]
[Black "djano"]
[Result "0-1"]
[WhiteElo "2789"]
[BlackElo "2678"]
[TimeControl "180+1"]
[EndTime "9:07:14 PDT"]
[Termination "djano won by resignation"]

1. e4 {[%clk 0:03:00.9]} 1... c5 {[%clk 0:02:59.6]} 2. Nf3 {[%clk 0:03:00.9]}
2... Nc6 {[%clk 0:02:59.6]} 3. Bb5 {[%clk 0:03:00.6]} 3... e5 {[%clk 0:02:59.4]}
4. O-O {[%clk 0:02:54.9]} 4... Nge7 {[%clk 0:02:59.7]} 5. Re1 {[%clk 0:02:53.6]}
5... g6 {[%clk 0:02:59.7]} 6. d3 {[%clk 0:02:48.5]} 6... Bg7 {[%clk 0:02:59.9]}
7. Nbd2 {[%clk 0:02:47.1]} 7... O-O {[%clk 0:02:59.8]} 8. a4 {[%clk 0:02:46.9]}
8... d6 {[%clk 0:02:56]} 9. h3 {[%clk 0:02:42.5]} 9... h6 {[%clk 0:02:49.4]} 10.
c3 {[%clk 0:02:38.9]} 10... f5 {[%clk 0:02:48.6]} 11. Bc4+ {[%clk 0:02:35.3]}
11... Kh7 {[%clk 0:02:47.4]} 12. exf5 {[%clk 0:02:20.5]} 12... Nxf5 {[%clk
0:02:48.3]} 13. Nf1 {[%clk 0:02:13.1]} 13... Nh4 {[%clk 0:02:35.5]} 14. Nxh4
{[%clk 0:02:04.6]} 14... Qxh4 {[%clk 0:02:36.4]} 15. Be3 {[%clk 0:02:04.5]}
15... Bd7 {[%clk 0:02:29.8]} 16. a5 {[%clk 0:01:54.7]} 16... Rad8 {[%clk
0:02:22.1]} 17. Qb3 {[%clk 0:01:50.5]} 17... Bc8 {[%clk 0:02:17.3]} 18. Bd5
{[%clk 0:01:47.1]} 18... a6 {[%clk 0:02:02.3]} 19. Ra4 {[%clk 0:01:40.2]} 19...
Qe7 {[%clk 0:01:59.3]} 20. Nh2 {[%clk 0:01:28.9]} 20... Bf6 {[%clk 0:01:40.8]}
21. Nf3 {[%clk 0:01:18]} 21... Qg7 {[%clk 0:01:29.8]} 22. h4 {[%clk 0:01:08.9]}
22... Ne7 {[%clk 0:01:12.4]} 23. Bxb7 {[%clk 0:00:57.2]} 23... Bd7 {[%clk
0:01:12.9]} 24. Bxa6 {[%clk 0:00:38]} 24... Rb8 {[%clk 0:01:13.1]} 25. Qa3
{[%clk 0:00:35.5]} 25... Bxa4 {[%clk 0:01:11.2]} 26. Qxa4 {[%clk 0:00:36.4]}
26... Rxb2 {[%clk 0:01:11.1]} 27. Bc1 {[%clk 0:00:24.3]} 27... Rb1 {[%clk
0:01:06.4]} 28. Qg4 {[%clk 0:00:21.7]} 28... Ra1 {[%clk 0:01:00.3]} 29. Qe6
{[%clk 0:00:16.8]} 29... Rxa5 {[%clk 0:00:56.5]} 30. Qxd6 {[%clk 0:00:16.4]}
30... Nf5 {[%clk 0:00:53.2]} 31. Qb6 {[%clk 0:00:12.2]} 31... Bd8 {[%clk
0:00:51.4]} 32. Qc6 {[%clk 0:00:11.6]} 32... Rf6 {[%clk 0:00:46.8]} 33. Qc8
{[%clk 0:00:10.8]} 33... Rf8 {[%clk 0:00:31.9]} 34. Bc4 {[%clk 0:00:08.2]} 34...
Bxh4 {[%clk 0:00:26.8]} 35. Qe6 {[%clk 0:00:08.2]} 35... Bf6 {[%clk 0:00:22.1]}
36. Nxe5 {[%clk 0:00:05.1]} 36... Bxe5 {[%clk 0:00:21.6]} 37. Rxe5 {[%clk
0:00:04.5]} 37... Ra1 {[%clk 0:00:20.3]} 38. Re1 {[%clk 0:00:04.6]} 38... Qxc3
{[%clk 0:00:15.2]} 39. Rf1 {[%clk 0:00:02.8]} 39... Rxc1 {[%clk 0:00:11.4]} 40.
Qd7+ {[%clk 0:00:02.9]} 40... Kh8 {[%clk 0:00:10.6]} 41. Qe6 {[%clk 0:00:01.9]}
41... Rxf1+ {[%clk 0:00:10.5]} 42. Kxf1 {[%clk 0:00:02.8]} 42... Qf6 {[%clk
0:00:10.5]} 43. Qd5 {[%clk 0:00:01.3]} 43... Ne3+ {[%clk 0:00:10.5]} 0-1

[Event "Early-Titled-Tuesday-Blitz-October-03-2023"]
[Site "Chess.com"]
[Date "2023.10.03"]
[Round "6"]
[White "DefiantChair"]
[Black "chito89"]
[Result "1-0"]
[WhiteElo "2560"]
[BlackElo "2797"]
[TimeControl "180+1"]
[EndTime "9:07:15 PDT"]
[Termination "DefiantChair won on time"]

1. e4 {[%clk 0:03:00.9]} 1... d6 {[%clk 0:02:56.7]} 2. d4 {[%clk 0:03:00.9]}
2... Nf6 {[%clk 0:02:57.6]} 3. Nc3 {[%clk 0:03:00.6]} 3... Nbd7 {[%clk
0:02:57.2]} 4. Nf3 {[%clk 0:03:00.3]} 4... e5 {[%clk 0:02:57]} 5. Bc4 {[%clk
0:03:00.4]} 5... Be7 {[%clk 0:02:54.9]} 6. O-O {[%clk 0:03:00.1]} 6... O-O
{[%clk 0:02:55.3]} 7. h3 {[%clk 0:02:53.3]} 7... a6 {[%clk 0:02:54.9]} 8. a4
{[%clk 0:02:53.2]} 8... b6 {[%clk 0:02:55]} 9. Ba2 {[%clk 0:02:39.5]} 9... Bb7
{[%clk 0:02:49.7]} 10. Re1 {[%clk 0:02:37]} 10... c6 {[%clk 0:02:43.6]} 11. Qd3
{[%clk 0:02:31.2]} 11... b5 {[%clk 0:02:43.3]} 12. d5 {[%clk 0:02:19.5]} 12...
Nc5 {[%clk 0:02:35.7]} 13. Qd1 {[%clk 0:02:07.6]} 13... cxd5 {[%clk 0:01:56.8]}
14. Bxd5 {[%clk 0:01:57]} 14... Nxd5 {[%clk 0:01:49.8]} 15. Nxd5 {[%clk
0:01:40.7]} 15... Nxa4 {[%clk 0:01:45.2]} 16. c4 {[%clk 0:01:17.8]} 16... Nb6
{[%clk 0:01:39.9]} 17. Nxe7+ {[%clk 0:01:10.1]} 17... Qxe7 {[%clk 0:01:39.3]}
18. cxb5 {[%clk 0:01:10.8]} 18... axb5 {[%clk 0:01:39.7]} 19. Rxa8 {[%clk
0:01:11.3]} 19... Rxa8 {[%clk 0:01:39.6]} 20. Qb3 {[%clk 0:01:11.7]} 20... Bc6
{[%clk 0:01:31.3]} 21. Qc3 {[%clk 0:01:01.9]} 21... Qb7 {[%clk 0:01:29.9]} 22.
Qd3 {[%clk 0:00:59.2]} 22... Rd8 {[%clk 0:01:15.1]} 23. Bg5 {[%clk 0:00:59.1]}
23... Rd7 {[%clk 0:01:14.9]} 24. Nd2 {[%clk 0:00:54.9]} 24... d5 {[%clk
0:00:44.1]} 25. exd5 {[%clk 0:00:50.1]} 25... Rxd5 {[%clk 0:00:45]} 26. Qb3
{[%clk 0:00:46]} 26... h6 {[%clk 0:00:36.7]} 27. Be3 {[%clk 0:00:44.4]} 27...
Nd7 {[%clk 0:00:35.7]} 28. Ne4 {[%clk 0:00:35.1]} 28... Qa6 {[%clk 0:00:21.7]}
29. Nc3 {[%clk 0:00:29.2]} 29... Rd3 {[%clk 0:00:20.2]} 30. Qb4 {[%clk
0:00:29.6]} 30... Qb7 {[%clk 0:00:18.4]} 31. f3 {[%clk 0:00:26.6]} 31... Nf6
{[%clk 0:00:17.3]} 32. Bf2 {[%clk 0:00:23.4]} 32... Nd5 {[%clk 0:00:15.1]} 33.
Qe4 {[%clk 0:00:14.8]} 33... Nf4 {[%clk 0:00:04.2]} 34. Qxe5 {[%clk 0:00:13.4]}
34... g5 {[%clk 0:00:02.4]} 35. Bg3 {[%clk 0:00:10.2]} 35... Ng6 {[%clk
0:00:02.8]} 36. Qf6 {[%clk 0:00:09.7]} 36... Qd7 {[%clk 0:00:02.3]} 37. Bf2
{[%clk 0:00:09.4]} 37... Qd8 {[%clk 0:00:01.7]} 38. Qxc6 {[%clk 0:00:08.6]}
38... Nf4 {[%clk 0:00:01.1]} 39. Re8+ {[%clk 0:00:08.6]} 1-0

[Event "Early-Titled-Tuesday-Blitz-October-03-2023"]
[Site "Chess.com"]
[Date "2023.10.03"]
[Round "6"]
[White "hurricane7791"]
[Black "Zhigalko_Sergei"]
[Result "0-1"]
[WhiteElo "2707"]
[BlackElo "2938"]
[TimeControl "180+1"]
[EndTime "9:07:24 PDT"]
[Termination "Zhigalko_Sergei won by resignation"]

1. d4 {[%clk 0:03:00.9]} 1... Nf6 {[%clk 0:03:00.1]} 2. c4 {[%clk 0:02:59.8]}
2... e6 {[%clk 0:03:00.8]} 3. Nf3 {[%clk 0:03:00.2]} 3... b6 {[%clk 0:03:01]} 4.
a3 {[%clk 0:02:59.3]} 4... Ba6 {[%clk 0:02:59.2]} 5. Qc2 {[%clk 0:02:49.9]} 5...
Bb7 {[%clk 0:02:58.6]} 6. Nc3 {[%clk 0:02:49.9]} 6... c5 {[%clk 0:02:58.7]} 7.
d5 {[%clk 0:02:43.8]} 7... exd5 {[%clk 0:02:58.1]} 8. cxd5 {[%clk 0:02:44.4]}
8... Nxd5 {[%clk 0:02:59]} 9. Nxd5 {[%clk 0:02:44.8]} 9... Bxd5 {[%clk
0:02:59.7]} 10. e4 {[%clk 0:02:45.7]} 10... Be6 {[%clk 0:03:00.2]} 11. Bf4
{[%clk 0:02:41.2]} 11... Nc6 {[%clk 0:02:57.2]} 12. Rd1 {[%clk 0:02:40.8]} 12...
Be7 {[%clk 0:02:53.8]} 13. Ba6 {[%clk 0:02:37.4]} 13... Na5 {[%clk 0:02:30.8]}
14. Qc3 {[%clk 0:02:37]} 14... O-O {[%clk 0:02:27.9]} 15. O-O {[%clk 0:02:34.8]}
15... Bf6 {[%clk 0:02:02]} 16. e5 {[%clk 0:02:33.7]} 16... Be7 {[%clk
0:02:02.2]} 17. b4 {[%clk 0:02:07.5]} 17... cxb4 {[%clk 0:01:38.5]} 18. axb4
{[%clk 0:02:08.4]} 18... Nc6 {[%clk 0:01:26.2]} 19. Bb7 {[%clk 0:02:05]} 19...
Nxb4 {[%clk 0:01:26.4]} 20. Bxa8 {[%clk 0:01:58.2]} 20... Qxa8 {[%clk
0:01:27.3]} 21. Bg5 {[%clk 0:01:58.1]} 21... Rc8 {[%clk 0:01:10.5]} 22. Qd2
{[%clk 0:01:35.7]} 22... Bc5 {[%clk 0:00:54.5]} 23. Be3 {[%clk 0:01:31.6]} 23...
Bf8 {[%clk 0:00:42.2]} 24. Nd4 {[%clk 0:01:31.4]} 24... Nd5 {[%clk 0:00:36.4]}
25. h3 {[%clk 0:01:22]} 25... a5 {[%clk 0:00:21.1]} 26. f4 {[%clk 0:01:19.6]}
26... Nc3 {[%clk 0:00:15.6]} 27. Rc1 {[%clk 0:01:15.2]} 27... Bb4 {[%clk
0:00:15.7]} 28. f5 {[%clk 0:01:09.5]} 28... Bc4 {[%clk 0:00:12.8]} 29. Qf2
{[%clk 0:00:40.1]} 29... Bxf1 {[%clk 0:00:12.4]} 30. Rxf1 {[%clk 0:00:28.5]}
30... Qe4 {[%clk 0:00:13]} 31. f6 {[%clk 0:00:28.6]} 31... Nd5 {[%clk
0:00:10.5]} 32. Bc1 {[%clk 0:00:21]} 32... Bc5 {[%clk 0:00:09.6]} 33. Bb2 {[%clk
0:00:20.5]} 33... g6 {[%clk 0:00:09.2]} 34. Kh1 {[%clk 0:00:18.9]} 34... Ne3
{[%clk 0:00:09.5]} 35. Re1 {[%clk 0:00:18.7]} 35... Bxd4 {[%clk 0:00:09.4]} 36.
Bxd4 {[%clk 0:00:19]} 36... Qxd4 {[%clk 0:00:09]} 37. Rxe3 {[%clk 0:00:19.6]}
37... h5 {[%clk 0:00:07.8]} 38. Qg3 {[%clk 0:00:14]} 38... Rc1+ {[%clk
0:00:06.5]} 39. Kh2 {[%clk 0:00:14.4]} 39... Rc4 {[%clk 0:00:06.4]} 40. e6
{[%clk 0:00:12.5]} 40... dxe6 {[%clk 0:00:03.3]} 41. Rf3 {[%clk 0:00:12.8]}
41... Qd8 {[%clk 0:00:03.1]} 42. Qg5 {[%clk 0:00:12.6]} 42... Rc5 {[%clk
0:00:03.6]} 43. Qh6 {[%clk 0:00:12.3]} 43... Qf8 {[%clk 0:00:03.9]} 44. Qe3
{[%clk 0:00:13]} 44... Rd5 {[%clk 0:00:03.8]} 45. h4 {[%clk 0:00:13]} 45... Qd6+
{[%clk 0:00:04.3]} 46. Rg3 {[%clk 0:00:13.5]} 46... Rd4 {[%clk 0:00:04.1]} 47.
Qg5 {[%clk 0:00:11.9]} 47... Rg4 {[%clk 0:00:03.9]} 0-1

[Event "Early-Titled-Tuesday-Blitz-October-03-2023"]
[Site "Chess.com"]
[Date "2023.10.03"]
[Round "6"]
[White "Sadykov_Ramil"]
[Black "Nekoo04"]
[Result "1-0"]
[WhiteElo "2605"]
[BlackElo "2316"]
[TimeControl "180+1"]
[EndTime "9:07:25 PDT"]
[Termination "Sadykov_Ramil won on time"]

1. Nf3 {[%clk 0:03:00.9]} 1... d5 {[%clk 0:02:58.8]} 2. g3 {[%clk 0:02:59.9]}
2... Nf6 {[%clk 0:02:58]} 3. Bg2 {[%clk 0:03:00.4]} 3... e6 {[%clk 0:02:55.2]}
4. c4 {[%clk 0:02:59]} 4... Be7 {[%clk 0:02:54.9]} 5. O-O {[%clk 0:02:57.2]}
5... O-O {[%clk 0:02:55]} 6. d4 {[%clk 0:02:57.9]} 6... c6 {[%clk 0:02:54.6]} 7.
Qc2 {[%clk 0:02:54.1]} 7... Nbd7 {[%clk 0:02:54.2]} 8. Nbd2 {[%clk 0:02:54.3]}
8... b6 {[%clk 0:02:52.9]} 9. e4 {[%clk 0:02:54.2]} 9... Bb7 {[%clk 0:02:52.5]}
10. b3 {[%clk 0:02:50]} 10... Rc8 {[%clk 0:02:50.7]} 11. Bb2 {[%clk 0:02:35.7]}
11... Re8 {[%clk 0:02:48.5]} 12. e5 {[%clk 0:02:32]} 12... Nh5 {[%clk
0:02:18.6]} 13. Rac1 {[%clk 0:02:20.7]} 13... c5 {[%clk 0:02:17]} 14. Rfd1
{[%clk 0:02:03]} 14... g6 {[%clk 0:02:00.1]} 15. Qd3 {[%clk 0:01:50.4]} 15...
cxd4 {[%clk 0:01:50.4]} 16. Bxd4 {[%clk 0:01:45.3]} 16... Nc5 {[%clk 0:01:36.6]}
17. Qe3 {[%clk 0:01:44.1]} 17... Ng7 {[%clk 0:01:32.8]} 18. g4 {[%clk
0:01:41.9]} 18... Ne4 {[%clk 0:01:10.8]} 19. Nxe4 {[%clk 0:01:15.6]} 19... dxe4
{[%clk 0:01:09.9]} 20. Bb2 {[%clk 0:01:13.7]} 20... exf3 {[%clk 0:00:31.9]} 21.
Rxd8 {[%clk 0:01:12.4]} 21... Rcxd8 {[%clk 0:00:32.8]} 22. Bxf3 {[%clk
0:01:12.2]} 22... Bc5 {[%clk 0:00:32.6]} 23. Qe2 {[%clk 0:01:11]} 23... Bxf3
{[%clk 0:00:32.1]} 24. Qxf3 {[%clk 0:01:11.2]} 24... Rd2 {[%clk 0:00:32.7]} 25.
Bc3 {[%clk 0:01:06]} 25... Rxf2 {[%clk 0:00:30.4]} 26. Qxf2 {[%clk 0:00:58.4]}
26... Bxf2+ {[%clk 0:00:31.3]} 27. Kxf2 {[%clk 0:00:59.2]} 27... Rd8 {[%clk
0:00:29.9]} 28. Ke3 {[%clk 0:00:57.2]} 28... h5 {[%clk 0:00:29.7]} 29. h3 {[%clk
0:00:57]} 29... hxg4 {[%clk 0:00:22.7]} 30. hxg4 {[%clk 0:00:57.9]} 30... Ne8
{[%clk 0:00:22.8]} 31. Bb4 {[%clk 0:00:53.5]} 31... Rd7 {[%clk 0:00:17.9]} 32.
a4 {[%clk 0:00:47.5]} 32... f6 {[%clk 0:00:16.6]} 33. exf6 {[%clk 0:00:26.2]}
33... Nxf6 {[%clk 0:00:17.5]} 34. g5 {[%clk 0:00:26]} 34... Nh7 {[%clk
0:00:11.8]} 35. Kf4 {[%clk 0:00:23.9]} 35... Rd3 {[%clk 0:00:09.7]} 36. a5
{[%clk 0:00:22.4]} 36... Rxb3 {[%clk 0:00:06.3]} 37. Bc3 {[%clk 0:00:19.9]}
37... bxa5 {[%clk 0:00:02.2]} 38. c5 {[%clk 0:00:19.7]} 38... a4 {[%clk
0:00:02]} 39. c6 {[%clk 0:00:19.6]} 39... Rb8 {[%clk 0:00:01.8]} 40. c7 {[%clk
0:00:12.3]} 40... Rc8 {[%clk 0:00:01.1]} 41. Be5 {[%clk 0:00:13]} 41... a3
{[%clk 0:00:01.5]} 42. Rb1 {[%clk 0:00:12.3]} 42... Nf8 {[%clk 0:00:01.3]} 43.
Rb8 {[%clk 0:00:12.4]} 43... a2 {[%clk 0:00:01.5]} 44. Rxc8 {[%clk 0:00:12.1]}
1-0

[Event "Early-Titled-Tuesday-Blitz-October-03-2023"]
[Site "Chess.com"]
[Date "2023.10.03"]
[Round "6"]
[White "MaxLeto"]
[Black "nitpicker"]
[Result "1-0"]
[WhiteElo "2475"]
[BlackElo "2241"]
[TimeControl "180+1"]
[EndTime "9:07:25 PDT"]
[Termination "MaxLeto won on time"]

1. g4 {[%clk 0:03:00.9]} 1... d5 {[%clk 0:02:57.5]} 2. Bg2 {[%clk 0:02:27.4]}
2... c6 {[%clk 0:02:57.3]} 3. h3 {[%clk 0:02:07.9]} 3... e5 {[%clk 0:02:57]} 4.
d4 {[%clk 0:01:33.3]} 4... e4 {[%clk 0:02:51.5]} 5. c4 {[%clk 0:01:33.1]} 5...
Bd6 {[%clk 0:02:49.6]} 6. Nc3 {[%clk 0:01:33.4]} 6... Ne7 {[%clk 0:02:47.3]} 7.
Bg5 {[%clk 0:01:32.6]} 7... f6 {[%clk 0:02:45.9]} 8. Bh4 {[%clk 0:01:32.3]} 8...
Ng6 {[%clk 0:02:41]} 9. Bg3 {[%clk 0:01:32.5]} 9... Bxg3 {[%clk 0:02:40.8]} 10.
fxg3 {[%clk 0:01:33.4]} 10... Qd6 {[%clk 0:02:35.2]} 11. Kf2 {[%clk 0:01:32.9]}
11... O-O {[%clk 0:02:20.8]} 12. e3 {[%clk 0:01:25.3]} 12... f5 {[%clk
0:02:17.2]} 13. g5 {[%clk 0:01:24.4]} 13... f4 {[%clk 0:02:13.2]} 14. gxf4
{[%clk 0:01:13.4]} 14... Nxf4 {[%clk 0:02:12.8]} 15. exf4 {[%clk 0:01:10.4]}
15... Qxf4+ {[%clk 0:02:12.5]} 16. Nf3 {[%clk 0:01:06.8]} 16... Na6 {[%clk
0:01:45.7]} 17. Ne2 {[%clk 0:00:20.5]} 17... Qf7 {[%clk 0:01:39]} 18. Ng1 {[%clk
0:00:11.2]} 18... Nb4 {[%clk 0:01:08]} 19. Qd2 {[%clk 0:00:07.1]} 19... Nd3+
{[%clk 0:00:52.5]} 20. Ke2 {[%clk 0:00:07.6]} 20... Nf4+ {[%clk 0:00:46.6]} 21.
Kd1 {[%clk 0:00:07.6]} 21... Nxg2 {[%clk 0:00:44.3]} 22. Qxg2 {[%clk 0:00:01.5]}
22... exf3 {[%clk 0:00:43.8]} 23. Qf2 {[%clk 0:00:02]} 23... Bf5 {[%clk
0:00:35.4]} 24. Kd2 {[%clk 0:00:02.2]} 24... Be4 {[%clk 0:00:26.2]} 25. c5
{[%clk 0:00:02.8]} 25... Qf4+ {[%clk 0:00:24]} 26. Kc3 {[%clk 0:00:02.3]} 26...
Qxg5 {[%clk 0:00:20.7]} 27. h4 {[%clk 0:00:02.7]} 27... Qg2 {[%clk 0:00:20.5]}
28. Rh2 {[%clk 0:00:03.4]} 28... Qg4 {[%clk 0:00:15.3]} 29. Nh3 {[%clk
0:00:02.7]} 29... Rae8 {[%clk 0:00:14.2]} 30. Ng5 {[%clk 0:00:02.9]} 30... h6
{[%clk 0:00:12.2]} 31. Rg1 {[%clk 0:00:03.5]} 31... Qf5 {[%clk 0:00:10.9]} 32.
Nh3 {[%clk 0:00:02.2]} 32... b6 {[%clk 0:00:10.1]} 33. Rg3 {[%clk 0:00:02.5]}
33... bxc5 {[%clk 0:00:09.8]} 34. dxc5 {[%clk 0:00:02.2]} 34... Qe5+ {[%clk
0:00:09.7]} 35. Qd4 {[%clk 0:00:02]} 35... Qxd4+ {[%clk 0:00:09.1]} 36. Kxd4
{[%clk 0:00:02.9]} 36... Rf5 {[%clk 0:00:07.6]} 37. Rf2 {[%clk 0:00:02.9]} 37...
Ref8 {[%clk 0:00:07]} 38. Ng1 {[%clk 0:00:02.7]} 38... Kh7 {[%clk 0:00:05.8]}
39. b4 {[%clk 0:00:03.2]} 39... g5 {[%clk 0:00:05.7]} 40. hxg5 {[%clk
0:00:04.1]} 40... hxg5 {[%clk 0:00:06]} 41. a4 {[%clk 0:00:04.6]} 41... Kg6
{[%clk 0:00:05.8]} 42. b5 {[%clk 0:00:05.1]} 42... cxb5 {[%clk 0:00:04.5]} 43.
axb5 {[%clk 0:00:06]} 43... Rf4 {[%clk 0:00:04.8]} 44. Ke3 {[%clk 0:00:06]}
44... Kf5 {[%clk 0:00:03.4]} 45. Nh3 {[%clk 0:00:06.3]} 45... Rh4 {[%clk
0:00:01.7]} 46. Rxg5+ {[%clk 0:00:05.9]} 46... Kf6 {[%clk 0:00:02]} 47. Rg3
{[%clk 0:00:06.6]} 47... Rfh8 {[%clk 0:00:01.5]} 48. Ng1 {[%clk 0:00:06.9]} 1-0